bitfinex/quotes_ETHUSD_20251215
["timestamp","ask_amount","ask_price","bid_price","bid_amount"]
[1765766392922,0.511,3125.0,3124.3,0.95980476]
[1765766394373,0.1939,3125.1,3124.3,0.95980476]
[1765766394656,0.1939,3125.1,3124.3,0.001]
[1765766394657,3.71202512,3125.0,3124.3,0.001]
[1765766395217,6.8999048,3124.9,3124.3,0.001]
[1765766396153,0.00966759,3124.4,3124.3,0.001]
[1765766396461,0.99096759,3124.4,3124.3,0.001]
[1765766397023,4.1915821,3124.4,3124.3,0.001]
[1765766397757,0.99096759,3124.4,3124.3,0.001]
[1765766397924,4.1915821,3124.4,3124.3,0.001]
[1765766398325,5.42744819,3124.4,3124.3,0.001]
[1765766399554,2.22683368,3124.4,3124.3,0.001]
[1765766399759,1.48666759,3124.4,3124.3,0.001]
[1765766399925,0.52166759,3124.4,3124.3,0.001]
[1765766400949,1.01166759,3124.4,3124.3,0.001]
[1765766401157,4.7079821,3124.4,3124.3,0.001]
[1765766401354,1.50736759,3124.4,3124.3,0.001]
[1765766401554,3.69592006,3124.8,3124.3,0.001]
[1765766401723,0.52066759,3124.7,3124.3,0.001]
[1765766402133,0.511,3124.6,3124.3,0.001]
[1765766403265,0.00966759,3125.0,3124.3,0.001]
[1765766403266,0.00966759,3125.4,3124.3,0.001]
[1765766403466,0.511,3125.1,3124.3,0.61348245]
[1765766403658,0.00966759,3125.8,3124.4,0.67537521]
[1765766403853,0.511,3125.7,3124.4,0.67537521]
[1765766404238,0.00966759,3125.6,3124.4,0.67537521]
[1765766404567,0.511,3125.5,3124.4,0.67537521]
[1765766405070,0.511,3125.5,3124.6,0.58047529]
[1765766405259,0.511,3125.5,3124.7,0.69814995]
[1765766406643,0.00966759,3125.4,3124.7,0.69814995]
[1765766407976,0.00966759,3125.4,3124.8,3.20020481]
[1765766408191,0.00966759,3125.2,3124.8,3.20020481]
[1765766409009,0.00966759,3125.4,3124.8,6.40040962]
[1765766409273,0.511,3125.2,3124.8,3.9681083]
[1765766409687,0.00966759,3125.4,3124.8,7.16831311]
[1765766409857,0.511,3125.3,3124.8,3.9681083]
[1765766410057,0.511,3125.3,3124.6,0.58047529]
[1765766411093,0.511,3125.3,3124.8,0.58047529]
[1765766412798,0.511,3125.3,3124.9,3.2001024]
[1765766413979,0.00966759,3125.8,3124.9,6.4002048]
[1765766414179,3.88169827,3125.9,3124.9,6.4002048]
[1765766414180,0.1939,3125.9,3124.9,7.09827281]
[1765766414383,0.4887,3126.1,3125.0,0.58047529]
[1765766414579,0.511,3125.8,3125.0,0.58047529]
[1765766414894,0.1911,3126.3,3125.2,0.58047529]
[1765766415073,0.002,3126.5,3125.2,0.58047529]
[1765766415074,0.52066759,3126.2,3125.3,0.69802705]
[1765766415268,0.01166759,3126.5,3125.3,0.69802705]
[1765766415476,0.00966759,3126.3,3125.3,0.69802705]
[1765766416087,0.511,3126.3,3125.3,0.69802705]
[1765766416300,0.511,3126.4,3125.3,0.69802705]
[1765766416482,0.511,3126.4,3125.3,1.20902705]
[1765766416687,0.511,3126.4,3125.4,0.17895023]
[1765766416887,0.511,3126.4,3125.6,0.58047529]
[1765766417983,0.002,3126.5,3125.6,0.58047529]
[1765766419086,0.002,3126.5,3125.8,0.58047529]
[1765766420288,0.002,3126.5,3125.8,1.09047529]
[1765766420491,0.002,3126.5,3125.9,1.06883254]
[1765766421003,0.002,3126.5,3126.2,0.58047529]
[1765766423480,0.002,3126.5,3126.3,3.19866935]
[1765766423682,0.002,3126.5,3126.4,0.58047529]
[1765766424114,0.4703,3126.5,3126.3,3.19866935]
[1765766424319,0.4683,3126.4,3126.3,3.19866935]
[1765766425118,0.002,3126.5,3126.1,0.58047529]
[1765766426034,0.002,3126.5,3126.1,1.27831808]
[1765766427385,0.002,3126.5,3126.3,0.58047529]
[1765766429484,0.002,3126.5,3126.4,3.77904233]
[1765766432423,0.002,3126.5,3126.4,10.31268589]
[1765766433606,0.002,3126.5,3126.4,3.19856704]
[1765766433996,0.494,3126.5,3126.3,3.19865157]
[1765766434217,0.494,3126.5,3126.4,3.19856704]
[1765766434443,0.002,3126.5,3126.4,4.56245056]
[1765766434720,0.002,3127.8,3126.5,0.98597929]
[1765766434927,0.002,3127.8,3126.7,0.405504]
[1765766435215,0.4755,3127.7,3126.6,2.44543273]
[1765766435415,0.6813,3126.7,3126.4,6.39713408]
[1765766435819,0.6813,3126.7,3126.1,0.001]
[1765766436400,0.1893,3126.9,3126.1,0.001]
[1765766438232,0.1893,3126.9,3126.1,0.58147529]
[1765766438403,0.1893,3126.9,3126.2,1.01784042]
[1765766438737,0.4755,3126.8,3126.1,0.001]
[1765766438894,0.4755,3126.8,3126.1,0.58147529]
[1765766440197,0.00966759,3126.6,3126.3,0.58047529]
[1765766440598,0.492,3126.4,3126.3,0.58047529]
[1765766442028,0.48516759,3126.8,3126.3,0.58047529]
[1765766442233,0.002,3126.6,3126.4,3.19856704]
[1765766442530,0.002,3126.6,3126.5,0.58047529]
[1765766442732,0.4775,3126.6,3126.5,0.58047529]
[1765766442951,0.9695,3126.6,3126.5,0.58047529]
[1765766443629,0.9695,3126.6,3126.1,0.001]
[1765766443799,0.492,3126.2,3126.1,0.001]
[1765766444226,0.9675,3126.2,3126.1,0.001]
[1765766444426,0.492,3126.2,3126.1,0.58147529]
[1765766445823,0.9675,3126.2,3126.1,0.58147529]
[1765766446335,0.9675,3126.2,3126.1,0.001]
[1765766446839,0.9675,3126.2,3126.1,0.58147529]
[1765766447360,0.9675,3126.2,3126.1,0.001]
[1765766447558,0.97716759,3126.2,3126.1,0.001]
[1765766448758,4.64557951,3126.2,3126.1,0.001]
[1765766452463,18.33010851,3126.2,3126.1,0.001]
[1765766452664,14.20020051,3126.2,3126.1,0.001]
[1765766453366,21.47978951,3126.2,3126.1,0.001]
[1765766453551,11.58527051,3126.2,3126.1,0.001]
[1765766453862,10.65203051,3126.2,3126.1,0.001]
[1765766454065,7.82318351,3126.2,3126.1,0.001]
[1765766454438,14.19886151,3126.2,3126.1,0.001]
[1765766455536,20.48968451,3126.2,3126.1,0.001]
[1765766456069,19.51403051,3126.2,3126.1,0.001]
[1765766456449,22.18570951,3126.2,3126.1,0.001]
[1765766457054,19.66448451,3126.2,3126.1,0.001]
[1765766457464,5.05108351,3126.2,3126.1,0.001]
[1765766457648,20.65895251,3126.2,3126.1,0.001]
[1765766457855,14.32873551,3126.2,3126.1,0.001]
[1765766458068,14.82873551,3126.2,3126.1,0.001]
[1765766458575,22.27093951,3126.2,3126.1,0.001]
[1765766458774,20.45678751,3126.2,3126.1,0.001]
[1765766459209,6.06108351,3126.2,3126.1,0.001]
[1765766460013,6.05141592,3126.2,3126.1,0.001]
[1765766460498,6.11539292,3126.2,3126.1,0.001]
[1765766460700,5.19988892,3126.2,3126.1,0.001]
[1765766460891,4.73024867,3126.2,3126.1,0.001]
[1765766461286,5.24024867,3126.2,3126.1,0.001]
[1765766462525,0.563977,3126.2,3126.1,0.001]
[1765766462684,1.073977,3126.2,3126.1,0.001]
[1765766462897,0.563977,3126.2,3126.1,0.001]
[1765766463295,0.573977,3126.2,3126.1,0.001]
[1765766464029,0.063977,3126.2,3126.1,0.001]
[1765766464203,0.573977,3126.2,3126.1,0.001]
[1765766464902,0.063977,3126.2,3126.1,0.001]
[1765766472345,0.063977,3126.2,3126.1,0.58147529]
[1765766472531,0.063977,3126.2,3126.1,1.31150782]
[1765766473019,0.063977,3126.2,3126.1,1.68502309]
[1765766474163,0.063977,3126.2,3126.1,4.88389708]
[1765766474540,0.063977,3126.2,3126.1,4.47839308]
[1765766477644,0.063977,3126.2,3126.1,1.27951909]
[1765766477807,0.063977,3126.2,3126.1,0.001]
[1765766478020,1.038177,3126.2,3126.1,0.001]
[1765766478553,1.038177,3126.2,3126.0,0.001]
[1765766478554,4.23694867,3126.2,3126.0,0.001]
[1765766478747,0.98386759,3126.1,3126.0,0.001]
[1765766479259,0.98386759,3126.1,3125.2,0.58047529]
[1765766479444,0.98386759,3126.1,3125.1,3.19986453]
[1765766479445,1.22513879,3126.0,3125.1,3.19986453]
[1765766479642,1.22513879,3126.0,3124.9,3.78148473]
[1765766479818,0.68506759,3125.9,3125.0,6.98047529]
[1765766480023,0.00966759,3125.9,3125.0,6.98047529]
[1765766480468,0.063977,3126.2,3125.1,0.03199897]
[1765766480625,0.063977,3126.2,3125.2,1.42675143]
[1765766480824,0.063977,3126.2,3125.4,0.98597929]
[1765766481029,0.063977,3126.2,3125.3,0.405504]
[1765766481857,0.063977,3126.2,3125.5,0.58047529]
[1765766482559,0.6884,3125.6,3125.2,1.02124743]
[1765766482761,0.6884,3125.6,3125.0,3.19992536]
[1765766482966,0.6884,3125.6,3125.2,3.19972161]
[1765766483127,0.6884,3125.6,3125.0,3.1999307]
[1765766483128,0.00966759,3125.5,3125.0,3.1999307]
[1765766483453,0.49026759,3125.5,3124.9,0.001]
[1765766483758,0.49026759,3125.5,3125.3,0.001]
[1765766483924,0.87967752,3125.5,3125.3,0.001]
[1765766484125,0.4936,3125.4,3125.3,0.001]
[1765766484360,0.9742,3125.4,3125.3,0.001]
[1765766485529,0.405504,3125.3,3124.9,0.001]
[1765766485722,0.4936,3125.0,3124.9,0.001]
[1765766485927,3.6936,3125.0,3124.9,0.001]
[1765766486147,4.86354104,3125.0,3124.9,0.001]
[1765766486845,1.66354104,3125.0,3124.9,0.001]
[1765766487043,2.18320863,3125.0,3124.9,0.001]
[1765766487249,1.49386759,3125.0,3124.9,0.001]
[1765766487655,4.69386759,3125.0,3124.9,0.001]
[1765766488433,4.18386759,3125.0,3124.9,0.001]
[1765766488633,4.69386759,3125.0,3124.9,0.001]
[1765766492361,35.67984688,3125.0,3124.9,0.001]
[1765766492540,38.88945001,3125.0,3124.9,0.001]
[1765766493072,24.46640601,3125.0,3124.9,0.001]
[1765766493367,27.85229701,3125.0,3124.9,0.001]
[1765766494344,0.98597929,3124.7,3124.3,0.001]
[1765766494545,0.98597929,3124.5,3124.3,0.001]
[1765766494773,0.98597929,3124.2,3124.0,0.001]
[1765766494937,30.10763329,3124.1,3124.0,0.001]
[1765766495137,0.405504,3124.0,3123.6,0.001]
[1765766495338,1.57707159,3123.9,3123.6,0.001]
[1765766495869,2.03847159,3123.9,3123.6,0.001]
[1765766496167,5.44344554,3123.9,3123.6,0.001]
[1765766496465,0.00966759,3124.0,3123.6,0.001]
[1765766496656,0.51,3123.9,3123.6,0.001]
[1765766497370,1.4375,3123.9,3123.6,0.001]
[1765766497969,0.4661,3123.9,3123.6,0.001]
[1765766498158,0.9761,3123.9,3123.6,0.001]
[1765766498360,1.4375,3123.9,3123.6,0.001]
[1765766498565,0.51966759,3123.9,3123.6,0.001]
[1765766499059,4.64829438,3123.9,3123.6,0.001]
[1765766499263,5.4332166,3123.9,3123.6,0.001]
[1765766499459,5.8387206,3123.9,3123.6,0.001]
[1765766500650,0.00966759,3123.9,3123.6,0.001]
[1765766500851,0.51966759,3123.9,3123.6,0.001]
[1765766501171,1.44716759,3123.9,3123.6,0.001]
[1765766501339,0.00966759,3123.9,3123.6,0.001]
[1765766501544,0.51966759,3123.9,3123.6,0.001]
[1765766502340,0.00966759,3123.9,3123.6,0.001]
[1765766502645,0.51966759,3123.9,3123.6,0.001]
[1765766503272,1.44716759,3123.9,3123.6,0.001]
[1765766503479,4.64829438,3123.9,3123.6,0.001]
[1765766503642,1.44716759,3123.9,3123.6,0.001]
[1765766503842,0.98576759,3123.9,3123.6,0.001]
[1765766504043,0.51966759,3123.9,3123.6,0.001]
[1765766505074,0.00966759,3123.9,3123.6,0.001]
[1765766505270,0.51966759,3123.9,3123.6,0.001]
[1765766507163,4.59239838,3123.9,3123.6,0.001]
[1765766507377,5.4181675,3123.9,3123.6,0.001]
[1765766510480,5.8236715,3123.9,3123.6,0.001]
[1765766510683,4.9081675,3123.9,3123.6,0.001]
[1765766511075,5.4191675,3123.9,3123.6,0.001]
[1765766511881,4.9081675,3123.9,3123.6,0.001]
[1765766512180,5.4191675,3123.9,3123.6,0.001]
[1765766513492,36.40514679,3123.9,3123.6,0.001]
[1765766513867,36.53336815,3123.9,3123.6,0.001]
[1765766514301,30.0,3123.5,3122.5,0.001]
[1765766514593,1.057404,3122.6,3122.5,0.001]
[1765766514753,1.1629,3122.6,3122.5,0.001]
[1765766514953,0.1858,3122.8,3122.5,0.001]
[1765766515158,0.511,3122.7,3122.5,0.001]
[1765766515394,0.4661,3122.6,3122.5,0.001]
[1765766515613,0.9275,3122.6,3122.5,0.001]
[1765766515801,3.20215184,3122.9,3122.5,0.001]
[1765766515979,0.4661,3122.6,3122.5,0.001]
[1765766516183,0.511,3122.6,3122.5,0.001]
[1765766516399,0.4614,3122.8,3122.5,0.001]
[1765766516718,0.511,3122.6,3122.5,0.001]
[1765766517493,3.21211479,3122.7,3122.5,0.001]
[1765766517713,0.511,3122.6,3122.5,0.001]
[1765766518092,3.21211479,3122.7,3122.5,0.001]
[1765766518093,0.00966759,3122.7,3122.5,0.001]
[1765766518414,0.511,3122.6,3122.5,0.001]
[1765766519604,0.00966759,3123.3,3122.5,0.001]
[1765766519809,0.00966759,3123.1,3122.5,0.001]
[1765766520178,0.511,3123.1,3122.5,0.001]
[1765766520377,0.00966759,3123.5,3122.5,0.001]
[1765766520585,0.511,3123.4,3122.5,0.001]
[1765766520998,0.00966759,3123.8,3122.5,0.001]
[1765766521197,0.511,3123.7,3122.6,12.80983792]
[1765766521415,0.511,3123.6,3122.7,1.90210948]
[1765766521730,0.01166759,3124.0,3122.7,1.90210948]
[1765766522324,0.01166759,3124.0,3123.2,0.58047529]
[1765766522325,0.002,3124.0,3123.2,0.58047529]
[1765766523433,0.002,3124.0,3123.4,0.58047529]
[1765766523633,0.002,3124.0,3123.5,1.01857005]
[1765766524004,0.00966759,3123.9,3123.5,1.01857005]
[1765766524201,0.00966759,3123.7,3123.4,0.58047529]
[1765766524625,0.511,3123.6,3123.3,0.58047529]
[1765766525217,0.4716,3123.4,3122.2,6.13898186]
[1765766525412,0.4716,3123.3,3122.4,0.58047529]
[1765766525612,0.00966759,3123.0,3122.5,0.6996961]
[1765766525813,0.00966759,3122.8,3122.5,0.6996961]
[1765766526017,0.52066759,3123.0,3122.5,0.6996961]
[1765766526213,0.00966759,3122.8,3122.5,0.6996961]
[1765766526638,0.00966759,3123.3,3122.5,0.6996961]
[1765766526806,0.511,3123.5,3122.5,0.6996961]
[1765766527010,0.511,3123.5,3123.1,0.001]
[1765766527220,0.511,3123.6,3123.1,0.001]
[1765766529232,0.511,3123.7,3123.1,0.001]
[1765766529528,0.002,3124.0,3123.1,0.001]
[1765766530132,0.1814,3123.9,3123.1,1.34000826]
[1765766530505,0.511,3123.8,3123.1,1.34000826]
[1765766531421,0.00966759,3123.5,3123.2,3.20184426]
[1765766531617,0.00966759,3123.5,3123.3,0.58047529]
[1765766532541,0.00966759,3123.7,3123.3,0.58047529]
[1765766533210,0.48126759,3123.4,3123.1,0.001]
[1765766533433,0.48126759,3123.2,3123.1,0.001]
[1765766533606,3.68311185,3123.2,3123.1,0.001]
[1765766533812,1.67791956,3123.2,3123.1,0.001]
[1765766534030,0.94236759,3123.2,3123.1,0.001]
[1765766534241,0.1814,3123.9,3123.1,0.001]
[1765766534510,0.9721,3123.8,3123.1,0.001]
[1765766534740,0.4716,3123.2,3123.1,0.001]
[1765766535123,1.4437,3123.2,3123.1,0.001]
[1765766535645,0.4716,3123.2,3123.1,0.001]
[1765766535845,0.511,3123.2,3123.1,0.001]
[1765766538038,0.00966759,3123.4,3123.1,0.001]
[1765766538243,1.39777159,3123.2,3123.1,0.001]
[1765766538448,1.81946852,3123.2,3123.1,0.001]
[1765766538652,0.48126759,3123.2,3123.1,0.001]
[1765766538828,1.45336759,3123.2,3123.1,0.001]
[1765766539764,0.52066759,3123.2,3123.1,0.001]
[1765766541859,1.45336759,3123.2,3123.1,0.001]
[1765766542571,4.65521185,3123.2,3123.1,0.001]
[1765766542762,5.44186526,3123.2,3123.1,0.001]
[1765766543832,5.84736926,3123.2,3123.1,0.001]
[1765766544044,5.84736926,3123.2,3122.5,0.001]
[1765766544045,30.405504,3123.1,3122.5,0.001]
[1765766544231,1.058504,3122.6,3122.5,0.001]
[1765766544432,1.569504,3122.6,3122.5,0.001]
[1765766544736,1.519604,3122.6,3122.5,0.001]
[1765766544943,2.030604,3122.6,3122.5,0.001]
[1765766545232,2.2336644,3122.6,3122.5,0.001]
[1765766545637,1.7226644,3122.6,3122.5,0.001]
[1765766545835,2.2336644,3122.6,3122.5,0.001]
[1765766546037,5.03061988,3122.6,3122.5,0.001]
[1765766546955,27.86540488,3122.6,3122.5,0.001]
[1765766547162,9.71026188,3122.6,3122.5,0.001]
[1765766547542,9.37946888,3122.6,3122.5,0.001]
[1765766547742,7.76622388,3122.6,3122.5,0.001]
[1765766550449,7.76622388,3122.6,3121.9,0.001]
[1765766550450,30.405504,3122.5,3121.9,0.001]
[1765766550761,0.405504,3121.9,3121.3,0.001]
[1765766551071,0.6623,3121.4,3121.3,0.001]
[1765766551259,1.1733,3121.4,3121.3,0.001]
[1765766552159,4.85969065,3121.4,3121.3,0.001]
[1765766553079,4.85969065,3121.4,3120.0,6.41120633]
[1765766553080,1.369804,3121.3,3120.0,6.41120633]
[1765766553278,0.405504,3121.8,3120.0,12.82146273]
[1765766553478,0.511,3121.7,3120.1,0.58047529]
[1765766553686,0.405504,3121.8,3120.1,0.58047529]
[1765766554026,0.511,3121.6,3120.1,0.58047529]
[1765766554228,0.00966759,3121.2,3120.3,0.58047529]
[1765766554529,0.00966759,3121.7,3120.4,0.03204717]
[1765766554730,0.00966759,3121.7,3120.3,6.72663159]
[1765766555005,0.511,3121.8,3120.8,0.58047529]
[1765766555214,0.511,3121.8,3120.9,0.67266316]
[1765766555620,0.1814,3122.6,3120.9,0.67266316]
[1765766555793,0.4827,3122.3,3120.9,0.67266316]
[1765766556111,0.4827,3122.3,3120.5,0.58047529]
[1765766556112,0.00966759,3121.7,3120.2,10.63444926]
[1765766556295,0.00966759,3121.7,3120.3,0.58047529]
[1765766556504,0.512,3121.6,3120.3,6.72663159]
[1765766556681,0.512,3121.6,3120.3,6.1461563]
[1765766557377,0.512,3121.6,3120.4,0.58047529]
[1765766558719,0.9947,3121.6,3120.5,6.40922928]
[1765766559081,0.9947,3121.6,3120.6,0.58047529]
[1765766559082,0.4827,3121.5,3120.6,0.58047529]
[1765766559906,3.71550167,3121.6,3120.6,0.58047529]
[1765766559907,0.512,3121.6,3120.6,0.58047529]
[1765766560214,3.71548634,3121.6,3120.6,0.58047529]
[1765766560415,3.71548634,3121.6,3120.6,0.53047529]
[1765766560621,0.00966759,3121.0,3120.6,1.22444575]
[1765766561033,0.00966759,3121.0,3120.7,3.20440926]
[1765766561191,0.00966759,3121.0,3120.3,0.001]
[1765766561192,0.4816,3120.7,3120.3,0.001]
[1765766561391,0.4816,3120.7,3120.3,3.20574884]
[1765766561708,0.6917,3120.9,3120.3,3.20574884]
[1765766561915,0.6917,3120.9,3120.4,3.20465437]
[1765766562115,0.00966759,3120.5,3120.3,0.001]
[1765766562492,0.887104,3120.1,3117.8,0.96344383]
[1765766562692,0.405504,3119.9,3117.8,0.001]
[1765766562939,6.41066734,3119.8,3118.5,6.41333974]
[1765766563099,0.68161713,3119.7,3118.5,6.41333974]
[1765766563302,0.68161713,3119.7,3118.5,3.20666987]
[1765766563617,0.49126759,3119.1,3117.9,0.513]
[1765766563824,1.00426759,3119.1,3117.8,0.001]
[1765766564019,1.48696759,3119.1,3118.1,3.20698624]
[1765766564408,0.405504,3118.8,3117.8,0.001]
[1765766564562,0.4827,3119.6,3118.4,3.32703182]
[1765766564744,0.00966759,3119.1,3118.5,0.33270318]
[1765766565058,0.00966759,3119.1,3118.7,0.58047529]
[1765766565216,0.52366759,3119.1,3118.7,0.58047529]
[1765766565638,0.00966759,3119.1,3118.7,0.58047529]
[1765766566234,0.00966759,3119.1,3118.6,3.20656704]
[1765766566235,0.514,3119.2,3118.5,3.20663006]
[1765766566434,0.514,3119.2,3118.4,0.12025912]
[1765766566435,0.405504,3119.0,3118.4,0.12125912]
[1765766566682,1.067804,3118.5,3118.4,0.12125912]
[1765766566964,0.405504,3118.4,3116.6,0.514]
[1765766567166,0.4816,3117.9,3117.1,0.001]
[1765766567671,0.405504,3117.8,3117.1,0.001]
[1765766567841,0.514,3117.7,3117.1,0.001]
[1765766568032,0.9967,3117.7,3117.1,3.20909779]
[1765766568239,0.9967,3117.7,3117.1,0.001]
[1765766568550,0.00966759,3117.2,3117.1,0.001]
[1765766568745,0.514,3117.2,3117.1,3.2090612]
[1765766569070,0.514,3117.3,3117.1,0.001]
[1765766569276,0.4827,3117.7,3117.1,0.001]
[1765766569564,0.4827,3118.3,3117.1,0.001]
[1765766569763,0.1807,3118.5,3117.1,0.001]
[1765766569948,0.00966759,3118.1,3117.1,0.001]
[1765766570269,0.00966759,3117.9,3117.1,0.001]
[1765766570656,0.515,3117.8,3117.1,0.001]
[1765766570845,0.49236759,3118.8,3117.2,0.58047529]
[1765766571047,0.00966759,3118.8,3117.6,6.1461563]
[1765766571241,0.00966759,3118.8,3117.7,0.58047529]
[1765766572743,0.00966759,3118.8,3118.1,0.58047529]
[1765766573167,0.00966759,3118.8,3118.2,9.62093514]
[1765766575177,0.00966759,3118.8,3118.4,6.4135454]
[1765766575944,0.00966759,3118.8,3118.5,0.58047529]
[1765766576585,0.00966759,3119.3,3118.6,0.69940207]
[1765766576892,0.1898,3118.9,3118.3,3.20687554]
[1765766577383,0.00966759,3120.1,3118.7,6.1461563]
[1765766577541,0.00966759,3120.1,3119.4,0.58047529]
[1765766577740,0.00966759,3120.1,3119.0,6.1461563]
[1765766578055,0.00966759,3120.1,3118.2,6.1461563]
[1765766578056,0.48766759,3120.1,3118.2,6.1461563]
[1765766578242,0.00966759,3120.1,3118.8,0.58047529]
[1765766578571,0.48766759,3120.1,3118.7,0.516]
[1765766578738,0.00966759,3120.1,3119.1,0.58047529]
[1765766579139,0.00966759,3120.3,3119.1,0.58047529]
[1765766579382,0.00966759,3120.7,3119.3,0.58047529]
[1765766579580,0.00966759,3120.7,3119.2,16.5457512]
[1765766579581,0.6678,3120.8,3119.6,0.58047529]
[1765766579762,0.478,3120.7,3119.6,0.58047529]
[1765766579962,0.00966759,3120.6,3119.7,0.67266316]
[1765766580288,0.00966759,3120.6,3119.3,0.58047529]
[1765766580490,0.00966759,3120.8,3119.8,0.58047529]
[1765766580862,0.1807,3120.9,3119.8,0.58047529]
[1765766581067,0.1807,3120.9,3119.2,16.0297512]
[1765766581068,0.00966759,3120.7,3119.2,16.0297512]
[1765766581388,0.00966759,3120.1,3119.4,6.41148938]
[1765766581787,0.48766759,3120.1,3119.4,6.41148938]
[1765766581989,0.48766759,3120.1,3119.4,9.61723407]
[1765766582288,0.994,3120.5,3119.4,10.57896214]
[1765766582497,0.994,3120.5,3119.4,13.78470683]
[1765766582702,0.994,3120.5,3119.5,0.58047529]
[1765766582858,0.516,3120.5,3119.5,0.58047529]
[1765766583058,0.66836759,3120.9,3119.6,1.80869268]
[1765766583284,0.66836759,3120.9,3119.7,12.82174568]
[1765766583562,0.002,3120.8,3119.8,0.58047529]
[1765766584063,0.48,3120.8,3119.8,0.58047529]
[1765766585410,0.48,3120.8,3119.9,6.41046186]
[1765766586498,0.00966759,3120.5,3119.9,6.41046186]
[1765766586670,0.00966759,3120.5,3119.9,3.20523093]
[1765766586671,0.00966759,3120.3,3119.9,3.20523093]
[1765766586868,0.4984,3120.0,3119.9,3.20523093]
[1765766587281,0.9764,3120.0,3119.2,3.20589993]
[1765766587499,0.1898,3119.9,3119.4,6.41148938]
[1765766587672,0.6678,3119.9,3119.4,3.20574469]
[1765766587868,0.6678,3119.9,3119.4,6.41148938]
[1765766588068,0.478,3119.8,3119.4,6.41148938]
[1765766588474,0.48766759,3119.8,3119.4,6.41148938]
[1765766588672,0.48766759,3119.8,3118.4,3.78716458]
[1765766588673,0.50806759,3119.5,3118.2,3.20697714]
[1765766588904,0.4984,3119.3,3119.2,3.20595024]
[1765766589312,0.9764,3119.3,3118.5,0.58047529]
[1765766589523,0.4984,3119.1,3118.6,6.41313408]
[1765766589734,0.4984,3119.1,3118.5,6.41331583]
[1765766591521,0.4984,3119.1,3118.1,0.58047529]
[1765766591694,0.478,3119.5,3118.2,1.34091195]
[1765766591895,0.48766759,3119.5,3118.2,1.34091195]
[1765766592624,0.002,3119.1,3118.2,1.34091195]
[1765766593101,0.002,3119.1,3118.3,0.515]
[1765766593301,0.48766759,3119.0,3118.5,3.20666987]
[1765766593812,0.48766759,3119.0,3118.5,6.41333974]
[1765766593813,0.1898,3118.9,3118.5,6.41333974]
[1765766593980,0.4984,3118.6,3118.2,3.20690496]
[1765766594184,0.52466759,3118.8,3117.2,3.20800374]
[1765766594185,0.516,3119.0,3118.4,3.2067727]
[1765766594386,0.516,3119.0,3118.4,6.4135454]
[1765766595016,0.1898,3118.9,3118.4,6.4135454]
[1765766595545,0.002,3119.1,3118.4,0.64135454]
[1765766595853,0.002,3119.1,3118.0,0.58047529]
[1765766596866,0.002,3119.1,3118.1,0.515]
[1765766597069,0.002,3119.1,3118.4,0.58047529]
[1765766597267,0.002,3119.1,3118.5,0.54706669]
[1765766597420,0.002,3119.1,3118.7,0.58047529]
[1765766597622,0.002,3119.1,3118.9,0.58047529]
[1765766597848,0.002,3119.1,3119.0,0.515]
[1765766598927,0.002,3119.1,3119.0,0.54706155]
[1765766599118,0.002,3119.1,3119.0,0.515]
[1765766599318,0.002,3119.1,3119.0,0.54706155]
[1765766599527,0.002,3119.1,3119.0,5.1602815]
[1765766599941,0.002,3119.1,3119.0,5.19234305]
[1765766600324,0.002,3119.1,3119.0,5.1602815]
[1765766602453,0.002,3119.1,3119.0,5.0507855]
[1765766602622,0.002,3120.0,3119.1,0.98597929]
[1765766602824,0.002,3120.0,3119.9,7.01942476]
[1765766603031,0.002,3120.0,3119.9,7.53442476]
[1765766603653,0.002,3120.0,3119.9,10.73965569]
[1765766603861,0.002,3121.3,3120.0,0.58047529]
[1765766604366,0.48,3121.3,3120.0,0.58047529]
[1765766604564,0.48,3121.3,3120.1,0.515]
[1765766605563,0.002,3121.3,3120.7,7.01942476]
[1765766605764,0.002,3121.3,3120.7,11.4407765]
[1765766606738,0.002,3121.3,3120.7,11.97768491]
[1765766607072,0.002,3121.3,3120.7,4.48682703]
[1765766607270,0.9572,3120.8,3120.7,3.20440926]
[1765766607744,0.9572,3120.8,3120.4,0.515]
[1765766607950,0.4922,3120.8,3120.4,0.515]
[1765766608146,0.4922,3120.8,3120.3,0.515]
[1765766608351,0.4976,3120.7,3120.3,0.515]
[1765766609072,0.002,3120.8,3120.3,0.515]
[1765766609566,0.002,3120.8,3120.4,0.58047529]
[1765766609772,0.002,3120.8,3120.5,6.92422928]
[1765766610771,0.002,3120.8,3120.6,0.515]
[1765766611441,0.002,3120.8,3120.6,1.09547529]
[1765766611669,0.002,3120.8,3120.6,1.1275204]
[1765766611973,0.002,3120.8,3120.7,3.78488455]
[1765766612278,0.002,3120.8,3120.7,4.53853898]
[1765766613275,0.002,3120.8,3120.7,4.57058307]
[1765766613779,0.002,3120.8,3120.7,4.53853898]
[1765766613978,0.002,3120.8,3120.7,4.57058307]
[1765766616969,0.002,3120.8,3120.7,5.05253898]
[1765766617370,0.002,3120.8,3120.7,5.08458307]
[1765766617891,0.002,3120.8,3120.7,5.05253898]
[1765766619489,0.002,3121.3,3120.8,0.58047529]
[1765766619653,0.002,3121.3,3121.2,6.43894947]
[1765766619856,0.002,3121.3,3121.2,6.95294947]
[1765766621686,0.002,3121.3,3121.2,10.1568454]
[1765766623803,0.002,3122.1,3121.2,23.55290441]
[1765766624100,0.002,3122.1,3121.8,0.58047529]
[1765766624276,0.002,3122.1,3121.9,0.514]
[1765766624475,0.002,3122.1,3122.0,0.514]
[1765766624476,0.4996,3122.1,3122.0,0.514]
[1765766625094,0.9786,3122.1,3122.0,0.514]
[1765766625383,0.481,3122.1,3122.0,0.514]